Cogmind - Beta 16.1 @@@ ROGUE MODE // 2026.02.25 @ 18:14:36 Player: Ceorik Result: Destroyed by P-80 Master with Gamma Rifle Performance ------------- Evolutions (7) 3500 Regions Visited (21) 4200 Robots Destroyed (55) 275 Value Destroyed (1724) 1724 Prototype IDs (71) 1420 Alien Tech Used (4) 800 Bonus (12116) 12116 TOTAL SCORE: 24035 Bonus ------- High Alert Combat Kills 167 Follower Combat Kills 9795 Met Data Miner 300 Met Zhirov 300 Met Warlord at Base 500 MAIN.C Attacked Warlord 500 Warlord Defense Kills 54 Scanned by Researcher 500 Cogmind --------- Core Integrity 0/1300 Matter 260/300 Energy 85/100 System Corruption 5% Temperature Cool (0) Movement Core (50) Location -3/Quarantine Parts ------- > --- POWER (3) -------- (None) > --- PROPULSION (4) --- (None) > --- UTILITY (8) ------ (None) > --- WEAPON (6) ------- (None) > --- INVENTORY (5) ---- Experimental Phase Shifter Core Cannon Peak State ------------ > --- POWER ------------ Light Antimatter Reactor Heavy Antimatter Reactor Particle Reactor > --- PROPULSION ------- Wheel Wheel Wheel Compact Wheel > --- UTILITY ---------- Huge Storage Unit Matter Compressor Advanced Signal Interpreter Transmission Jammer Advanced Force Field Advanced Remote Shield Improved Hacking Suite Makeshift System Shield > --- WEAPON ----------- 1B-0RG's Assimilator Lance > --- INVENTORY -------- Wheel Advanced Energy Well Experimental Energy Well Large Matter Pod Matter Compressor Matter Compressor Matter Compressor Improved Sensor Array Advanced Sensor Array Improved Transmission Jammer Experimental Phase Shifter Powered Armor Powered Armor Improved Hacking Suite System Guard Transdimensional Reconstructor Quantum Rifle Quantum Rifle Core Cannon Chain Missile Launcher Improved Remote Datajack [Rating: 154] Favorites ----------- Power Fission Core Engine Light Angular Momentum Engine Power Core Fission Core Reactor Cold Fusion Reactor Propulsion Wheel Treads Medium Treads Leg Enhanced Flexi-carbon Leg Wheel Wheel Flight Unit Xenon Bombardment Thruster Utility Huge Storage Unit Device Advanced Shield Generator Storage Huge Storage Unit Processor Signal Interpreter Hackware Advanced Hacking Suite Protection Powered Armor Weapon 1B-0RG's Assimilator Energy Gun Spread Laser Energy Cannon Subdweller Beam Cannon Ballistic Gun Enhanced Autogun Ballistic Cannon Flak Cannon Launcher Tesla Bomb Launcher Special Weapon Improved Remote Datajack Impact Weapon Power Maul Slashing Weapon Makeshift Sword Piercing Weapon Makeshift Spear Special Melee Weapon 1B-0RG's Assimilator Build | -11 -10 -10 -8 -7 -6 -6 -6 -6 -5 -5 -5 -5 -5 -4 -4 -4 -4 -4 -3 -3 -3 ------- Run | Yrd Mat Sub Mat Fac Fac Low Low Dat Pro Fac Upp Upp Zhi Pro Fac Upp Upp War Pro Res Qua Slots Evolved 14 | . . . 4 2 2 . . . . 2 . . . . 2 . . . . 2 . Power 2 | . . . . . . . . . . 1 . . . . . . . . . 1 . Propulsion 2 | . . . 2 . . . . . . . . . . . . . . . . . . Utility 6 | . . . 2 . . . . . . 1 . . . . 2 . . . . 1 . Weapon 4 | . . . . 2 2 . . . . . . . . . . . . . . . . Parts Attached 146 | 8 7 5 12 4 10 2 11 5 5 18 4 1 3 7 6 1 1 9 4 7 16 Power 16 | 1 . 1 1 . 1 . . 1 1 3 . . 1 . . . . 1 1 1 3 Engine 6 | 1 . 1 1 . . . . . . 1 . . . . . . . . 1 . 1 Core 4 | . . . . . 1 . . . . 2 . . . . . . . . . 1 . Reactor 6 | . . . . . . . . 1 1 . . . 1 . . . . 1 . . 2 Propulsion 35 | 2 2 1 3 . 3 . 3 1 1 5 2 . . 3 2 . . . . 2 5 Treads 4 | 2 . . . . . . . . . . 1 . . 1 . . . . . . . Leg 1 | . . . . . . . . 1 . . . . . . . . . . . . . Wheel 29 | . 2 1 3 . 3 . 3 . 1 5 1 . . 2 2 . . . . 2 4 Hover . | . . . . . . . . . . . . . . . . . . . . . . Flight 1 | . . . . . . . . . . . . . . . . . . . . . 1 Utility 62 | 2 3 1 5 2 2 1 6 2 1 8 1 1 2 2 4 1 . 8 2 4 4 Device 22 | 1 . . 2 1 1 . 1 . . 6 1 . 1 2 1 . . 2 2 1 . Storage 15 | 1 1 . . . . . 5 1 . 1 . . . . 1 . . 2 . 1 2 Processor 5 | . . 1 . . . 1 . . . . . . . . . . . . . 1 2 Hackware 5 | . . . . . . . . . . . . . . . 2 . . 2 . 1 . Protection 15 | . 2 . 3 1 1 . . 1 1 1 . 1 1 . . 1 . 2 . . . Artifact . | . . . . . . . . . . . . . . . . . . . . . . Weapon 33 | 3 2 2 3 2 4 1 2 1 2 2 1 . . 2 . . 1 . 1 . 4 Energy Gun 10 | 1 2 1 2 . 2 . . . . 1 . . . . . . . . 1 . . Energy Cannon 6 | . . 1 . . 1 . . 1 1 . . . . . . . . . . . 2 Ballistic Gun 3 | 2 . . 1 . . . . . . . . . . . . . . . . . . Ballistic Cannon 1 | . . . . 1 . . . . . . . . . . . . . . . . . Launcher 3 | . . . . 1 . . . . . 1 . . . . . . . . . . 1 Special Weapon 2 | . . . . . . . . . . . 1 . . 1 . . . . . . . Impact Weapon 3 | . . . . . . 1 2 . . . . . . . . . . . . . . Slashing Weapon 2 | . . . . . . . . . 1 . . . . . . . . . . . 1 Piercing Weapon 2 | . . . . . . . . . . . . . . 1 . . 1 . . . . Special Melee Weapon 1 | . . . . . 1 . . . . . . . . . . . . . . . . Unidentified Prototypes 19 | . . . 2 . 1 . . 3 . . . . 4 . . . . 5 . . 4 Corrupted Parts 1 | . . . . . . . . . . . 1 . . . . . . . . . . System Corruption 5 | . . . . . . . . . . . 5 . . . . . . . . . . Parts Lost 53 | . . 1 3 2 . . 1 . 1 9 2 1 . 2 . . . 5 2 . 24 Power 9 | . . 1 1 . . . . . . 2 . . . . . . . . . . 5 Propulsion 23 | . . . 1 . . . 1 . 1 4 2 1 . 2 . . . 1 2 . 8 Utility 16 | . . . 1 2 . . . . . 2 . . . . . . . 4 . . 7 Weapon 5 | . . . . . . . . . . 1 . . . . . . . . . . 4 Highest Loss Streak 16 | . . 1 3 2 . . 1 . 1 6 1 1 . 1 . . . 4 2 . 16 To Critical Strikes 1 | . . . . . . . . . . . . . . . . . . . . . 1 Average Backups 22 | 3 18 23 19 20 24 24 23 24 24 21 24 24 25 24 24 25 25 24 18 17 17 Power 2 | . 1 . 1 2 2 3 3 3 3 1 1 3 4 3 3 3 3 2 1 . . Propulsion 1 | 1 3 2 2 2 2 2 2 2 1 1 . . . . . . . . . . . Utility 13 | . 10 14 10 9 11 11 11 12 12 11 15 14 15 15 15 17 17 17 12 12 12 Weapon 5 | . 4 5 4 5 7 7 6 6 7 6 7 6 5 3 3 3 3 3 3 3 3 Tool/Special . | . . . . . . . . . . . . . . . . . . . . . . Unused Backups 45 | . 1 5 4 . 1 1 2 2 . 4 . 4 4 4 3 . . 3 . . 7 Power 3 | . . . . . 1 . . 1 . . . . 1 . . . . . . . . Propulsion 3 | . . . . . . . 1 1 . 1 . . . . . . . . . . . Utility 26 | . 1 3 1 . . 1 . . . 2 . 2 1 4 3 . . 2 . . 6 Weapon 12 | . . 2 3 . . . 1 . . 1 . 2 2 . . . . 1 . . . Tool/Special 1 | . . . . . . . . . . . . . . . . . . . . . 1 Average Slot Usage (%) 74 | . 99 100 98 88 72 66 66 63 65 72 73 70 70 68 76 78 78 77 64 73 63 Engine 2 | . 14 14 9 7 . . . . . 1 . . . . . . . . 5 4 3 Core 4 | . . . . . 5 6 6 4 . 6 11 11 9 5 5 5 5 1 . 2 1 Reactor 2 | . . . . . . . . 1 6 1 . . 1 5 5 5 5 8 5 4 4 Treads 1 | . 2 . . . . . . . . . 1 5 5 4 3 . . . . . . Wheel 18 | . 25 28 35 30 25 20 20 19 20 20 18 11 11 9 14 21 21 20 6 12 11 Device 7 | . 12 12 9 4 6 6 3 . . 8 11 9 5 7 9 5 5 . 9 9 10 Storage 10 | . 14 14 9 7 6 6 9 13 13 11 11 11 11 11 10 10 10 10 10 9 7 Processor 4 | . . . . . . . 6 6 6 5 5 5 5 5 5 5 5 5 5 4 4 Hackware 2 | . . . . . . . . . . . . . . . 9 10 10 9 5 9 7 Protection 4 | . 1 1 17 16 13 13 6 6 5 2 . 1 5 2 . 5 5 9 5 4 . Energy Gun 3 | . 23 27 9 7 3 5 . . . 1 . . . . . . . . 4 4 1 Piercing Weapon 1 | . . . . . . . . . . . . . . . 5 5 5 5 . . 2 Special Melee Weapon 4 | . . . . . 5 6 6 6 6 5 5 5 5 5 5 5 5 5 5 4 3 Peak Build Rating 154 | 7 13 18 30 35 102 102 102 112 108 117 115 115 117 120 129 126 128 141 130 143 154 Average Rating 101 | 5 10 12 26 29 89 101 99 101 106 111 112 114 114 116 126 126 126 132 127 139 121 On Entrance 89 | . 7 12 18 28 35 102 99 102 107 106 113 115 113 116 120 128 126 128 130 126 143 Avg Prop Armor Cover (%) 6 | . . . . . . . . 9 . . 7 6 5 6 7 . . . . . . Naked Turns 13 | . . . . . . . . . . . . . . . . . . . . . 13 Heaviest Build 217 | 12 94 97 107 104 159 156 154 169 168 174 171 173 175 187 187 186 187 203 199 206 217 Greatest Support 56 | 40 40 32 52 46 48 48 56 52 52 56 48 32 22 44 52 52 52 52 42 48 48 Greatest Overweight (x) 30 | . 2 3 2 2 5 3 3 6 3 7 7 7 7 15 5 3 3 4 12 12 30 Average Overweight (x) 3 | . 1 2 1 2 2 3 2 2 2 3 4 6 7 8 3 3 3 3 10 4 3 Largest Inventory Capacity 25 | 8 25 25 25 25 25 25 25 25 25 25 25 25 25 25 25 25 25 25 25 25 25 Average Capacity 24 | 6 23 25 25 25 25 25 25 25 25 25 25 25 25 25 25 25 25 25 25 25 21 Most Carried 25 | 5 25 25 25 25 25 25 25 25 25 25 25 25 25 25 25 25 25 25 21 20 25 Average Carried 23 | 3 18 24 24 23 24 24 23 24 24 21 24 24 24 24 24 25 24 24 19 19 19 Final Capacity 25 | 8 25 25 25 25 25 25 25 25 25 25 25 25 25 25 25 25 25 25 25 25 5 Final Carried 25 | 5 25 25 25 22 25 23 25 25 23 24 25 25 25 25 25 25 25 21 19 20 3 Class Distribution -------------------- 41% | Mutant 32% | Scavenger-Mutant 21% | Hacker-Mutant 4% | Commander-Mutant Dominant Class ---------------- Mutant | -10/Materials Mutant | -10/Subcaves Mutant | -8/Materials Scavenger-Mutant | -7/Factory Scavenger-Mutant | -6/Factory Mutant | -6/Lower Caves Mutant | -6/Lower Caves Mutant | -6/Data Miner Scavenger-Mutant | -5/Proximity Caves Scavenger-Mutant | -5/Factory Scavenger-Mutant | -5/Upper Caves Scavenger-Mutant | -5/Upper Caves Scavenger-Mutant | -5/Zhirov Scavenger-Mutant | -4/Proximity Caves Hacker-Mutant | -4/Factory Hacker-Mutant | -4/Upper Caves Hacker-Mutant | -4/Upper Caves Hacker-Mutant | -4/Warlord Mutant | -3/Proximity Caves Hacker-Mutant | -3/Research Hacker-Mutant | -3/Quarantine Resources | -11 -10 -10 -8 -7 -6 -6 -6 -6 -5 -5 -5 -5 -5 -4 -4 -4 -4 -4 -3 -3 -3 ----------- Run | Yrd Mat Sub Mat Fac Fac Low Low Dat Pro Fac Upp Upp Zhi Pro Fac Upp Upp War Pro Res Qua Matter Collected 20181 | 287 305 343 381 18 480 1041 1169 654 1631 1148 1128 1259 . 2964 458 685 1512 723 1691 561 1743 Remotely . | . . . . . . . . . . . . . . . . . . . . . . Salvage Created 2206 | 48 183 59 226 109 67 . 65 92 131 497 . . . 427 65 . . 21 . . 216 Parts 109 | 9 12 5 16 7 4 . 1 . . 17 . . . 15 9 . . 2 . . 12 Haulers Intercepted 1 | . . . . . . . . . . 1 . . . . . . . . . . . Recyclers Shooed 3 | . . . . . . . . . . 2 . . . 1 . . . . . . . Parts Field Recycled . | . . . . . . . . . . . . . . . . . . . . . . Retrieved Matter . | . . . . . . . . . . . . . . . . . . . . . . Parts Self-Destructed 236 | . . 7 . . . 11 11 . 29 . 11 17 . 77 . 11 32 . 30 . . Prevented 69 | . . . . . . 7 . . . . 6 10 . 46 . . . . . . . Parts Restored . | . . . . . . . . . . . . . . . . . . . . . . Kills | -11 -10 -10 -8 -7 -6 -6 -6 -6 -5 -5 -5 -5 -5 -4 -4 -4 -4 -4 -3 -3 -3 ------- Run | Yrd Mat Sub Mat Fac Fac Low Low Dat Pro Fac Upp Upp Zhi Pro Fac Upp Upp War Pro Res Qua Combat Hostiles Destroyed 31 | . 5 3 9 5 . . . 1 . 2 . . . 2 . . . 1 . . 3 Melee 2 | . . . . . . . . . . . . . . . . . . 1 . . 1 Guns 18 | . 5 3 9 . . . . . . 1 . . . . . . . . . . . Cannons 1 | . . . . 1 . . . . . . . . . . . . . . . . . AOE 9 | . . . . 4 . . . . . 1 . . . 2 . . . . . . 2 Classes Destroyed 11 | 1 1 2 1 2 . . . . . 4 . . . . . . . . . . . Worker 8 | . . . . 1 3 . . . . 3 . . . . 1 . . . . . . Builder 6 | . . . 1 . . . . . . . . . . . 2 . . . . . 3 Tunneler 4 | 3 1 . . . . . . . . . . . . . . . . . . . . Hauler 1 | . . . . . . . . . . 1 . . . . . . . . . . . Recycler 3 | . . . . . . . . . . 1 . . . 2 . . . . . . . Watcher 1 | . . . . . . . . . . 1 . . . . . . . . . . . Swarmer 6 | . . 2 3 . . . . . . . . . . . . . . 1 . . . Grunt 19 | . 5 . 5 3 . . . . . 1 . . . 2 . . . . . . 3 Sentry 2 | . . 1 1 . . . . . . . . . . . . . . . . . . Hunter 2 | . . . . 2 . . . . . . . . . . . . . . . . . Heavy 1 | . . . . . . . . . . 1 . . . . . . . . . . . Enhanced Grunt 1 | . . . . . . . . 1 . . . . . . . . . . . . . Thug 1 | . . . . . . . 1 . . . . . . . . . . . . . . Best Kill Streak 5 | 2 3 2 2 5 1 . . 1 . 4 . . . 2 1 . . 1 . . 3 Combat Bots Only 4 | . 2 2 2 4 . . . 1 . 1 . . . 2 . . . 1 . . 2 Max Kills in Single Turn 3 | 1 2 1 1 2 1 . 1 1 . 1 . . . 1 1 . . 1 . . 3 Gunslinging . | . . . . . . . . . . . . . . . . . . . . . . Exploded 2 | . . . . 2 . . . . . 1 . . . 1 . . . . . . 2 Melee 1 | . . . . . . . . . . . . . . . . . . 1 . . 1 Uniques/NPCs Destroyed . | . . . . . . . . . . . . . . . . . . . . . . Combat | -11 -10 -10 -8 -7 -6 -6 -6 -6 -5 -5 -5 -5 -5 -4 -4 -4 -4 -4 -3 -3 -3 -------- Run | Yrd Mat Sub Mat Fac Fac Low Low Dat Pro Fac Upp Upp Zhi Pro Fac Upp Upp War Pro Res Qua Hostile Shots Fired 934 | . 22 51 64 33 20 36 42 14 35 88 28 11 . 31 4 9 44 39 19 16 328 Missed 297 | . 3 15 21 6 12 8 14 6 10 32 9 1 . 15 1 2 12 9 6 6 109 Hits 637 | . 19 36 43 27 8 28 28 8 25 56 19 10 . 16 3 7 32 30 13 10 219 Melee 10 | . . . . . . . 2 . 2 . . . . . . . 2 1 . . 3 Projectile 627 | . 19 36 43 27 8 28 26 8 23 56 19 10 . 16 3 7 30 29 13 10 216 AOE 7 | . . . 1 . . . . . 1 1 . . . . 1 . . 1 . 1 1 Critical Strikes 37 | . . . . 1 1 2 . 1 1 5 . . . 2 . . 3 . 2 2 17 Actively Blocked 1 | . . . . . 1 . . . . . . . . . . . . . . . . Part Disruptions 3 | . . . . . . . . 1 . . . . . . . . . . 1 . 1 Damage Taken 12041 | . 251 274 685 457 94 668 395 422 483 1302 317 192 . 473 47 90 521 1256 242 215 3657 Core 2824 | . 75 67 136 49 24 114 46 97 99 187 51 38 . 124 . 11 78 250 60 32 1286 Absorbed by Shields 2941 | . . . . . . . 105 . . 545 113 61 . 297 49 93 276 186 217 205 794 Redirected to Shielding 323 | . . . 11 80 24 12 24 . . . . . . . . . . 172 . . . Regen/Repaired (Parts) 1926 | . . . . . . 199 114 26 160 418 77 18 . 144 47 6 116 255 107 18 221 Core Remaining (%) 70 | 100 . 43 75 93 . . . . 55 . . . . 60 . . . . 65 . . Volleys Fired 106 | 4 12 4 27 10 16 2 . . 5 10 . 3 1 6 . . . . . 3 3 Largest 3 | 2 2 2 2 3 3 1 . . 1 1 . 1 1 1 . . . . . 1 1 Hottest 160 | 60 130 130 145 127 127 85 . . 75 65 . 7 7 46 . . . . . 94 160 Shots Fired 176 | 8 24 8 53 27 18 2 . . 5 10 . 3 1 7 . . . . 4 3 3 Gun 133 | 8 24 8 46 17 13 2 . . . 8 . . . . . . . . 4 3 . Cannon 22 | . . . 7 4 5 . . . 5 . . . . . . . . . . . 1 Launcher 14 | . . . . 6 . . . . . 2 . . . 4 . . . . . . 2 Special 7 | . . . . . . . . . . . . 3 1 3 . . . . . . . Kinetic 52 | 4 6 . 19 14 7 . . . . 2 . . . . . . . . . . . Thermal 87 | 4 18 8 34 7 7 2 . . . . . . . . . . . . 4 3 . Explosive 8 | . . . . 6 . . . . . . . . . . . . . . . . 2 Electromagnetic 22 | . . . . . 4 . . . 5 8 . . . 4 . . . . . . 1 Robot Hit Streak 10 | 4 8 10 10 8 4 1 . . 1 6 . 9 10 1 . . . . . 4 . Robot Miss Streak 9 | 2 3 9 4 5 3 1 . . 2 1 . . . 2 . . . . . . . Penetration Max . | . . . . . . . . . . . . . . . . . . . . . . Secondary Targets 2 | . 2 . . . . . . . . . . . . . . . . . . . . Max Gunslinging Chain 1 | . 1 . . . . . . . . . . . . . . . . . . . . Shots Hit Robots 157 | 5 20 5 41 19 12 1 3 4 5 17 . 3 1 6 5 . 1 1 . 3 5 Core Hits 143 | 3 22 7 42 23 6 1 . . 3 10 . . . 9 3 . 1 1 . 2 10 Critical Kills . | . . . . . . . . . . . . . . . . . . . . . . Critical Parts Destroyed 2 | . . . . . . . 1 1 . . . . . . . . . . . . . Critical Strikes 6 | . . . . . 1 . 1 1 1 . . . . . . . . 1 . . 1 Corrupt 1 | . . . . . 1 . . . . . . . . . . . . . . . . Smash 2 | . . . . . . . 1 1 . . . . . . . . . . . . . Sever 1 | . . . . . . . . . 1 . . . . . . . . . . . . Impale 2 | . . . . . . . . . . . . . . . . . . 1 . . 1 Melee Attacks 66 | . . . . . . . 6 7 3 18 . . . 9 10 . 2 2 . . 9 Impact 13 | . . . . . . . 6 7 . . . . . . . . . . . . . Slashing 26 | . . . . . . . . . 3 18 . . . . . . . . . . 5 Piercing 27 | . . . . . . . . . . . . . . 9 10 . 2 2 . . 4 Sneak Attacks 18 | . . . . . . . 1 . . 5 . . . 3 5 . 1 . . . 3 Combat Hostiles . | . . . . . . . . . . . . . . . . . . . . . . Follow-up Attacks . | . . . . . . . . . . . . . . . . . . . . . . Damage Inflicted 5633 | 55 271 83 685 782 307 36 185 193 254 797 . . . 637 273 . 61 34 48 84 848 Guns 1611 | 55 271 83 628 182 151 36 . . . 73 . . . . . . . . 48 84 . Cannons 326 | . . . 57 75 156 . . . 38 . . . . . . . . . . . . Explosions 1674 | . . . . 525 . . . . 59 202 . . . 404 . . . . . . 484 Melee 2022 | . . . . . . . 185 193 157 522 . . . 233 273 . 61 34 . . 364 Ramming . | . . . . . . . . . . . . . . . . . . . . . . Kinetic 625 | 22 63 . 213 187 106 . . . . 34 . . . . . . . . . . . Thermal 1158 | 33 208 83 472 70 65 36 . . 59 . . . . . . . . . 48 84 . Explosive 1009 | . . . . 525 . . . . . . . . . . . . . . . . 484 Electromagnetic 819 | . . . . . 136 . . . 38 241 . . . 404 . . . . . . . Impact 378 | . . . . . . . 185 193 . . . . . . . . . . . . . Slashing 850 | . . . . . . . . . 157 522 . . . . . . . . . . 171 Piercing 794 | . . . . . . . . . . . . . . 233 273 . 61 34 . . 193 Highest Corruption 7 | . . . 7 . . 1 1 1 3 4 5 5 5 6 . . . 3 4 . 4 Average Corruption 3 | . . . 6 . . 1 1 1 2 3 5 5 5 5 . . . 2 3 . 1 Corruption Purged 4 | . . . . . . . . . . 4 . . . . . . . . . . . Corruption Blocked . | . . . . . . . . . . . . . . . . . . . . . . Effects 269 | . . . 16 . . 6 15 . 34 5 30 33 9 78 . . . 3 39 . 1 Message Errors 69 | . . . 2 . . 1 1 . 10 2 9 13 3 20 . . . . 8 . . Matter Fused 60 | . . . 4 . . 3 5 . 6 1 5 7 1 18 . . . . 9 . 1 Heat Flow Errors 34 | . . . 3 . . 1 2 . 5 2 2 2 1 11 . . . 1 4 . . Energy Discharges 41 | . . . 5 . . . 3 . 2 . 6 7 1 12 . . . 1 4 . . Parts Rejected 3 | . . . . . . . . . . . . . . 2 . . . . 1 . . Parts Fused 3 | . . . . . . . . . 1 . . . 1 1 . . . . . . . Data Loss (minor) 33 | . . . 1 . . . 2 . 7 . 6 2 1 8 . . . . 6 . . Data Loss (major) 9 | . . . . . . 1 2 . 2 . . 2 . 2 . . . . . . . Misfires 5 | . . . . . . . . . . . . . . 1 . . . . 4 . . Alerts 11 | . . . . . . . . . 1 . 2 . 1 3 . . . 1 3 . . Weapon Failures 1 | . . . 1 . . . . . . . . . . . . . . . . . . Overload Shots . | . . . . . . . . . . . . . . . . . . . . . . Overflow Damage 467 | . . . . . 33 . 59 74 . 105 . . . 39 30 . . . . . 127 Projectiles 33 | . . . . . 33 . . . . . . . . . . . . . . . . Explosions 31 | . . . . . . . . . . 18 . . . . . . . . . . 13 Melee 403 | . . . . . . . 59 74 . 87 . . . 39 30 . . . . . 114 Knockbacks 4 | . . . . 2 2 . . . . . . . . . . . . . . . . Impact . | . . . . . . . . . . . . . . . . . . . . . . Kinetic 4 | . . . . 2 2 . . . . . . . . . . . . . . . . Secondary . | . . . . . . . . . . . . . . . . . . . . . . Self-Inflicted Damage 16 | . . . . . . . . . . . . . . 16 . . . . . . . Shots 1 | . . . . . . . . . . . . . . 1 . . . . . . . Rammed . | . . . . . . . . . . . . . . . . . . . . . . Targets Rammed . | . . . . . . . . . . . . . . . . . . . . . . Kicked . | . . . . . . . . . . . . . . . . . . . . . . Crushed . | . . . . . . . . . . . . . . . . . . . . . . Highest Temperature 375 | . 375 48 316 320 34 163 194 1 254 138 241 255 212 247 . . . 86 246 60 6 Average Temperature 102 | . 124 19 105 196 25 82 102 1 95 35 106 111 117 99 . . . 57 87 33 6 Received Heat Transfer 2308 | . 138 123 288 189 27 228 70 27 48 54 6 27 . 207 12 8 67 34 25 47 683 Effects 2 | . 1 . 1 . . . . . . . . . . . . . . . . . . Shutdowns 1 | . 1 . . . . . . . . . . . . . . . . . . . . Energy Bleed 1 | . . . 1 . . . . . . . . . . . . . . . . . . Siege Activations . | . . . . . . . . . . . . . . . . . . . . . . Martial Activations . | . . . . . . . . . . . . . . . . . . . . . . Shielding Activations . | . . . . . . . . . . . . . . . . . . . . . . Robots Disrupted . | . . . . . . . . . . . . . . . . . . . . . . Combat Hostiles . | . . . . . . . . . . . . . . . . . . . . . . Robots Corrupted 2 | . . . . . . . 1 1 . . . . . . . . . . . . . Combat Hostiles 1 | . . . . . . . . 1 . . . . . . . . . . . . . Parts Fried 5 | . . . . . . . 1 3 . 1 . . . . . . . . . . . Impact Corruptions 4 | . . . . . . . 2 2 . . . . . . . . . . . . . Robots Melted . | . . . . . . . . . . . . . . . . . . . . . . Combat Hostiles . | . . . . . . . . . . . . . . . . . . . . . . Parts Melted 1 | . . . 1 . . . . . . . . . . . . . . . . . . Heat Transferred 1630 | 75 330 95 579 90 126 100 . . 50 . . . . . . . . . 74 111 . Parts Sabotaged 2 | . . . . . . . . . 2 . . . . . . . . . . . . Parts Stolen . | . . . . . . . . . . . . . . . . . . . . . . Parts Stripped . | . . . . . . . . . . . . . . . . . . . . . . Power Chain Reactions 1 | . . . . . . . . . 1 . . . . . . . . . . . . Alert | -11 -10 -10 -8 -7 -6 -6 -6 -6 -5 -5 -5 -5 -5 -4 -4 -4 -4 -4 -3 -3 -3 ------- Run | Yrd Mat Sub Mat Fac Fac Low Low Dat Pro Fac Upp Upp Zhi Pro Fac Upp Upp War Pro Res Qua Maximum Alert Level 5 | . . . . . . . . . . 1 . . . . 2 . . . . 3 5 Low Security (%) 64 | 100 100 . 100 100 100 . . . . 81 . . . . . . . . . 58 . Level 1 18 | . . . . . . . . . . 18 . . . . 65 . . . . 18 . Level 2 11 | . . . . . . . . . . . . . . . 34 . . . . 11 41 Level 3 2 | . . . . . . . . . . . . . . . . . . . . 11 17 Level 4 2 | . . . . . . . . . . . . . . . . . . . . . 30 Level 5 . | . . . . . . . . . . . . . . . . . . . . . 11 High Security . | . . . . . . . . . . . . . . . . . . . . . . Max Security . | . . . . . . . . . . . . . . . . . . . . . . Peak Influence 1666 | 10 55 . 80 124 60 . . . . 289 . . . . 552 . . . . 797 1666 Initial 550 | . . . . 4 60 . . . . 282 . . . . 550 . . . . 104 438 Average 212 | . 11 . 22 39 11 . . . . 145 . . . . 360 . . . . 269 950 Influence Increases 9966 | 15 147 150 366 154 160 315 132 . 524 905 276 216 . 1327 495 223 577 566 452 1069 1897 Destroy 0b10 Robot/C 5220 | . 100 60 180 100 80 180 100 . 340 440 200 160 . 780 100 140 300 380 280 520 780 Destroy 0b10 Robot/NC 330 | 15 5 . 5 5 15 . . . 15 45 . . . 35 55 . . . . 30 105 Destroy Leader 564 | . 20 . 40 20 30 10 10 . 50 78 10 . . 60 34 . 10 . 20 90 82 Allied During Kill 2405 | . . . . . 29 65 22 . 119 123 66 56 . 452 130 83 267 186 152 304 351 Successful Hack 69 | . 7 . 15 . 6 . . . . 11 . . . . 30 . . . . . . Disable Machine 270 | . . . . . . . . . . . . . . . 30 . . . . 45 195 Destroy Structure 463 | . . . 6 29 . . . . . 28 . . . . 116 . . . . 80 204 Advance Influence 150 | . . . . . . . . . . 150 . . . . . . . . . . . Partial Spotted 15 | . . . 15 . . . . . . . . . . . . . . . . . . Lose Combat Pursuer 480 | . 15 90 105 . . 60 . . . 30 . . . . . . . . . . 180 Influence Decreases 8341 | 15 147 150 354 42 284 173 274 . 313 981 411 216 . 453 926 553 295 613 645 445 1051 Entered New Map 1876 | . . . . 8 64 . 28 . . 79 51 . . . 324 164 23 395 348 51 341 Time Decay 5170 | 15 147 150 334 24 220 173 236 . 228 592 340 186 . 293 542 369 252 88 297 374 310 Lost Part 480 | . . . 20 10 . . 10 . 10 90 20 10 . 20 . . . 50 . . 240 Lost Ally 815 | . . . . . . . . . 75 220 . 20 . 140 60 20 20 80 . 20 160 Squads Dispatched 37 | . . . 2 2 2 . . . 1 6 . . . 3 2 . 1 . . 2 16 Investigation 3 | . . . . 1 . . . . . . . . . 2 . . . . . . . Extermination 9 | . . . . . 2 . . . . 2 . . . . 2 . . . . 2 1 Reinforcement 16 | . . . 2 1 . . . . . 4 . . . 1 . . . . . . 8 Assault 6 | . . . . . . . . . 1 . . . . . . . 1 . . . 4 Garrison 3 | . . . . . . . . . . . . . . . . . . . . . 3 Intercept . | . . . . . . . . . . . . . . . . . . . . . . Searches Triggered . | . . . . . . . . . . . . . . . . . . . . . . Construction Impeded 4 | . . . . 1 . . . . . . . . . 1 . . . . . . 2 Haulers Reinforced . | . . . . . . . . . . . . . . . . . . . . . . Active Scanning Responses . | . . . . . . . . . . . . . . . . . . . . . . Cargo Convoy Interrupts . | . . . . . . . . . . . . . . . . . . . . . . Stealth | -11 -10 -10 -8 -7 -6 -6 -6 -6 -5 -5 -5 -5 -5 -4 -4 -4 -4 -4 -3 -3 -3 --------- Run | Yrd Mat Sub Mat Fac Fac Low Low Dat Pro Fac Upp Upp Zhi Pro Fac Upp Upp War Pro Res Qua Distress Signals 9 | . 1 . 1 . . . . . . 2 . . . 1 1 . . 1 . 2 . Communications Jammed 173 | . . . . . . . . . . . . . . . 7 . . . . 1 165 Distress Signals 173 | . . . . . . . . . . . . . . . 7 . . . . 1 165 Times Spotted 382 | . 7 10 17 5 8 14 16 8 28 34 13 9 . 23 9 9 15 48 17 23 69 Peak Tracking Total 18 | . 3 6 6 5 3 7 4 4 7 5 4 5 . 5 2 7 9 13 4 6 18 Tactical Retreats 13 | . 1 1 4 . . 2 . . . 2 . . . . . . . . . . 3 Traps | -11 -10 -10 -8 -7 -6 -6 -6 -6 -5 -5 -5 -5 -5 -4 -4 -4 -4 -4 -3 -3 -3 ------- Run | Yrd Mat Sub Mat Fac Fac Low Low Dat Pro Fac Upp Upp Zhi Pro Fac Upp Upp War Pro Res Qua Traps Triggered 9 | . . . 5 . 3 . . . . . . . . . 1 . . . . . . Indirectly . | . . . . . . . . . . . . . . . . . . . . . . Trap Hack Attempts . | . . . . . . . . . . . . . . . . . . . . . . Triggered . | . . . . . . . . . . . . . . . . . . . . . . Disarmed . | . . . . . . . . . . . . . . . . . . . . . . Reprogrammed . | . . . . . . . . . . . . . . . . . . . . . . Reused 2 | . . . . . . 2 . . . . . . . . . . . . . . . Traps Extracted . | . . . . . . . . . . . . . . . . . . . . . . Installed 4 | . . . 2 . . 2 . . . . . . . . . . . . . . . Triggered 2 | . . . . . . 2 . . . . . . . . . . . . . . . Most Traps Carried 2 | . . 2 2 . . 2 . . . . . . . . . . . . . . . Machines | -11 -10 -10 -8 -7 -6 -6 -6 -6 -5 -5 -5 -5 -5 -4 -4 -4 -4 -4 -3 -3 -3 ---------- Run | Yrd Mat Sub Mat Fac Fac Low Low Dat Pro Fac Upp Upp Zhi Pro Fac Upp Upp War Pro Res Qua Machines Disabled 37 | . . . . . . . . 1 . . 3 . . 4 2 . 2 5 4 3 13 Max in Single Turn 1 | . . . . . . . . 1 . . . . . . . . . . . . 1 Garrison Access 3 | . . . . 1 . . . . . . . . . . 2 . . . . . . Machines Repaired . | . . . . . . . . . . . . . . . . . . . . . . Machines Dismantled . | . . . . . . . . . . . . . . . . . . . . . . Machines Sabotaged . | . . . . . . . . . . . . . . . . . . . . . . Overloaded Fab Kills . | . . . . . . . . . . . . . . . . . . . . . . Hacking | -11 -10 -10 -8 -7 -6 -6 -6 -6 -5 -5 -5 -5 -5 -4 -4 -4 -4 -4 -3 -3 -3 --------- Run | Yrd Mat Sub Mat Fac Fac Low Low Dat Pro Fac Upp Upp Zhi Pro Fac Upp Upp War Pro Res Qua Machines Accessed 48 | . 4 1 3 2 6 . 1 4 . 2 . 1 5 1 6 . . 8 . 1 3 Terminals 16 | . 2 . 3 1 4 . . . . 1 . . . . 3 . . . . . 2 Fabricators 2 | . . . . . 1 . . . . . . . . 1 . . . . . . . Repair Stations . | . . . . . . . . . . . . . . . . . . . . . . Recycling Units 4 | . 2 . . . . . . . . 1 . . . . 1 . . . . . . Scanalyzers 2 | . . . . . . . . . . . . . . . . . . . . 1 1 Garrison Access 4 | . . . . 1 1 . . . . . . . . . 2 . . . . . . Total Hacks 147 | . 13 1 8 4 17 . 1 30 . 3 . 1 18 3 16 . . 26 . 2 4 Successful 110 | . 5 1 5 1 6 . 1 30 . 3 . 1 18 1 10 . . 26 . 1 1 Failed 37 | . 8 . 3 3 11 . . . . . . . . 2 6 . . . . 1 3 Catastrophic 9 | . 2 . 1 1 3 . . . . . . . . . 1 . . . . . 1 Database Lockouts . | . . . . . . . . . . . . . . . . . . . . . . Manual 45 | . 7 . 6 2 14 . . . . 2 . . . . 9 . . 1 . . 4 Terminals 46 | . 7 . 8 2 14 . . . . 2 . . . . 10 . . . . . 3 Fabricators 5 | . . . . . 2 . . . . . . . . 3 . . . . . . . Repair Stations . | . . . . . . . . . . . . . . . . . . . . . . Recycling Units 8 | . 6 . . . . . . . . 1 . . . . 1 . . . . . . Scanalyzers 3 | . . . . . . . . . . . . . . . . . . . . 2 1 Garrison Access 8 | . . . . 2 1 . . . . . . . . . 5 . . . . . . Terminal Hacks 88 | . 1 1 2 . 3 . 1 30 . 1 . 1 18 . 4 . . 26 . . . Record 33 | . . . . . . . . 11 . . . . 6 . 1 . . 15 . . . Part Schematic 16 | . . . . . . . . 12 . . . . 4 . . . . . . . . Robot Schematic 4 | . . . . . . . . 4 . . . . . . . . . . . . . Robot Analysis 4 | . . . . . . . . . . . . . 4 . . . . . . . . Prototype ID Bank 17 | . . . . . . . . 3 . . . . 4 . . . . 10 . . . Open Door 3 | . . . . . . . 1 . . . . 1 . . . . . 1 . . . Branch Access Points 2 | . 1 . . . . . . . . . . . . . 1 . . . . . . Locate Traps 1 | . . . . . 1 . . . . . . . . . . . . . . . . Zone Layout 7 | . . . 2 . 2 . . . . 1 . . . . 2 . . . . . . Proto ID Catalog 1 | . . 1 . . . . . . . . . . . . . . . . . . . Fabricator Hacks 1 | . . . . . . . . . . . . . . 1 . . . . . . . Load Schematic 1 | . . . . . . . . . . . . . . 1 . . . . . . . Repair Station Hacks . | . . . . . . . . . . . . . . . . . . . . . . Recycling Unit Hacks 4 | . 2 . . . . . . . . 1 . . . . 1 . . . . . . Report Inventory 4 | . 2 . . . . . . . . 1 . . . . 1 . . . . . . Scanalyzer 2 | . . . . . . . . . . . . . . . . . . . . 1 1 Retrieve Study 2 | . . . . . . . . . . . . . . . . . . . . 1 1 Garrison Access Hacks 3 | . . . . 1 . . . . . . . . . . 2 . . . . . . Seal Access 3 | . . . . 1 . . . . . . . . . . 2 . . . . . . Unauthorized Hacks 12 | . 2 . 3 . 3 . . . . 1 . . . . 3 . . . . . . Terminals 12 | . 2 . 3 . 3 . . . . 1 . . . . 3 . . . . . . Botnet 12 | . 2 . 3 . 3 . . . . 1 . . . . 3 . . . . . . Fabricators . | . . . . . . . . . . . . . . . . . . . . . . Repair Stations . | . . . . . . . . . . . . . . . . . . . . . . Recycling Units . | . . . . . . . . . . . . . . . . . . . . . . Scanalyzers . | . . . . . . . . . . . . . . . . . . . . . . Garrison Access . | . . . . . . . . . . . . . . . . . . . . . . Data Cores Recovered 1 | . . . . . . . . . . 1 . . . . . . . . . . . Used . | . . . . . . . . . . . . . . . . . . . . . . Hacking Detections 24 | . 4 . 3 1 6 . . . . 1 . . . 1 5 . . . . 1 2 Full Trace Events 2 | . . . . 1 . . . . . . . . . 1 . . . . . . . Feedback Events . | . . . . . . . . . . . . . . . . . . . . . . Feedback Blocked . | . . . . . . . . . . . . . . . . . . . . . . Robot Schematics Acquired 5 | . . . . . . . . 4 . . . . . . . . . . . . 1 Robots Built . | . . . . . . . . . . . . . . . . . . . . . . Authchips . | . . . . . . . . . . . . . . . . . . . . . . Time . | . . . . . . . . . . . . . . . . . . . . . . Total Robot Build Rating . | . . . . . . . . . . . . . . . . . . . . . . Part Schematics Acquired 24 | . . . . . . . . 12 . . . . 4 . . . . . . . 8 Parts Built . | . . . . . . . . . . . . . . . . . . . . . . Authchips . | . . . . . . . . . . . . . . . . . . . . . . Time . | . . . . . . . . . . . . . . . . . . . . . . Total Part Build Rating . | . . . . . . . . . . . . . . . . . . . . . . Part Studies Acquired 2 | . . . . . . . . . . . . . . . . . . . . 1 1 Parts Repaired . | . . . . . . . . . . . . . . . . . . . . . . Time . | . . . . . . . . . . . . . . . . . . . . . . Parts Recycled . | . . . . . . . . . . . . . . . . . . . . . . Recycled Matter . | . . . . . . . . . . . . . . . . . . . . . . Retrieved Matter . | . . . . . . . . . . . . . . . . . . . . . . Retrieved Components . | . . . . . . . . . . . . . . . . . . . . . . Parts Scanalyzed . | . . . . . . . . . . . . . . . . . . . . . . Part Schematics Acquired . | . . . . . . . . . . . . . . . . . . . . . . Parts Damaged . | . . . . . . . . . . . . . . . . . . . . . . Bothacking | -11 -10 -10 -8 -7 -6 -6 -6 -6 -5 -5 -5 -5 -5 -4 -4 -4 -4 -4 -3 -3 -3 ------------ Run | Yrd Mat Sub Mat Fac Fac Low Low Dat Pro Fac Upp Upp Zhi Pro Fac Upp Upp War Pro Res Qua Used RIF Installer . | . . . . . . . . . . . . . . . . . . . . . . Robots Hacked 2 | . . . . . . . . . . . . 1 . 1 . . . . . . . Non-combat . | . . . . . . . . . . . . . . . . . . . . . . Combat 1 | . . . . . . . . . . . . . 1 . . . . . . . . Robot Hacks Applied 1 | . . . . . . . . . . . . . 1 . . . . . . . . parse_system 1 | . . . . . . . . . . . . . 1 . . . . . . . . Manual 2 | . . . . . . . . . . . . 1 . 1 . . . . . . . Relay Couplers Released . | . . . . . . . . . . . . . . . . . . . . . . Fabnet Peak Effective % . | . . . . . . . . . . . . . . . . . . . . . . Robots Rewired 21 | . . . . . . 2 1 . 2 . . 1 . 11 . 2 2 . . . . Allies Hacked 7 | . . . . . 1 . . . . 3 1 . . . . . . . 1 . 1 Hacks Repelled . | . . . . . . . . . . . . . . . . . . . . . . Allies | -11 -10 -10 -8 -7 -6 -6 -6 -6 -5 -5 -5 -5 -5 -4 -4 -4 -4 -4 -3 -3 -3 -------- Run | Yrd Mat Sub Mat Fac Fac Low Low Dat Pro Fac Upp Upp Zhi Pro Fac Upp Upp War Pro Res Qua Total Allies 25 | . . . . . . 2 1 . 2 . . 2 . 12 . 2 2 . . . 2 Largest Group 7 | . . . . . . 2 1 1 2 1 . 1 1 7 7 3 3 3 . . 3 Highest-Rated Group 308 | . . . . . . 59 31 31 58 29 . 85 85 308 168 147 147 128 . . 271 Highest-Rated Ally 138 | . . . . . . 30 31 31 29 29 . 85 85 116 49 49 49 49 . . 138 Total Orders 85 | . . . . . 5 6 7 2 8 10 14 . 4 2 4 6 2 4 . 8 3 STAY 40 | . . . . . 3 3 3 1 4 4 6 . 2 1 2 3 1 2 . 4 1 FOLLOW 40 | . . . . . 2 3 4 1 4 4 6 . 2 1 2 3 1 2 . 4 1 GUARD 1 | . . . . . . . . . . . . . . . . . . . . . 1 EXPLORE 4 | . . . . . . . . . . 2 2 . . . . . . . . . . Ally Attacks 1241 | . . . . . 18 47 55 48 86 117 20 30 . 170 47 47 91 114 79 109 163 Total Damage 45796 | . . . . . 573 1799 1726 918 2275 3220 934 1293 . 7380 1005 1370 2854 4169 2490 3883 9907 Kills 293 | . . . . . 4 9 13 3 20 23 10 8 . 43 13 7 16 20 15 33 56 Allies Corrupted . | . . . . . . . . . . . . . . . . . . . . . . Allies Melted 4 | . . . . . . . 1 . 1 . . . . 2 . . . . . . . Borg Created 54 | . . . . . 3 2 7 . 7 6 6 1 . 5 1 1 3 1 3 2 6 Largest Collective 6 | . . . . . 3 4 6 . 5 5 6 5 . 6 5 5 6 4 6 5 5 Intel | -11 -10 -10 -8 -7 -6 -6 -6 -6 -5 -5 -5 -5 -5 -4 -4 -4 -4 -4 -3 -3 -3 ------- Run | Yrd Mat Sub Mat Fac Fac Low Low Dat Pro Fac Upp Upp Zhi Pro Fac Upp Upp War Pro Res Qua Active Infowar (turns) 12904 | 25 566 1560 1033 62 . . . . . 724 1983 1052 . 1224 1175 . . . 1973 860 667 Optics 91 | . . . . . . . . . . . . . . . . . . . . . 91 Sensors 5196 | . . . . . . . . . . 724 1983 1052 . 1224 . . . . . . 213 Seismic 3246 | 25 566 1560 1033 62 . . . . . . . . . . . . . . . . . Jamming 4584 | . . . . . . . . . . . . . . . 1175 . . . 1973 860 576 Robot Analysis Total 4 | . . . . . . . . . . . . . 4 . . . . . . . . Derelict Logs Recovered 10 | . . . . . . . 1 . 1 . 1 2 . 3 . 1 1 . . . . Drone Launches 4 | . . . . . . . . . . 2 2 . . . . . . . . . . Drone Recoveries 2 | . . . . . . . . . . . 2 . . . . . . . . . . Exploration | -11 -10 -10 -8 -7 -6 -6 -6 -6 -5 -5 -5 -5 -5 -4 -4 -4 -4 -4 -3 -3 -3 ------------- Run | Yrd Mat Sub Mat Fac Fac Low Low Dat Pro Fac Upp Upp Zhi Pro Fac Upp Upp War Pro Res Qua Turns Passed 27912 | 170 662 1782 1260 109 1169 952 2250 285 2076 1860 1983 1386 366 2657 1543 1430 779 1669 1977 860 687 Spaces Moved 14387 | 89 377 1031 477 67 699 630 1288 175 1156 990 1106 700 166 1009 773 776 450 901 740 351 436 Core 44 | 2 . . . . . . . . . . . . . . . . . . . . 42 Treads 111 | 87 24 . . . . . . . . . . . . . . . . . . . . Legs . | . . . . . . . . . . . . . . . . . . . . . . Wheels 14133 | . 353 1031 477 67 699 630 1288 175 1156 990 1106 700 166 1009 773 776 450 901 740 351 295 Hover . | . . . . . . . . . . . . . . . . . . . . . . Flight 99 | . . . . . . . . . . . . . . . . . . . . . 99 Fastest Speed 40 | 50 130 130 105 115 115 131 123 123 123 125 132 158 190 156 135 135 135 135 153 150 40 Average Speed 150 | 157 131 130 111 115 128 131 124 130 137 135 154 189 190 211 152 135 135 135 258 168 123 Slowest Speed 1550 | 160 160 135 123 115 155 131 131 180 138 195 190 190 190 315 175 135 135 153 280 280 1550 Overloaded Moves . | . . . . . . . . . . . . . . . . . . . . . . Propulsion Burnouts . | . . . . . . . . . . . . . . . . . . . . . . Robots Hopped 1 | . . . . . . . 1 . . . . . . . . . . . . . . Potential Cave-ins 6 | . . . . . . . . . . . . . . . . 3 . 3 . . . Cave-ins Triggered 1 | . . . . . . . . . . . . . . . . . . 1 . . . Exploration Rate (%) 57 | 6 57 52 30 2 18 73 98 72 95 21 93 74 62 93 17 95 73 88 97 11 38 Regions Visited 21 Branch Regions 14 Pre-discovered Areas 6 | . . 1 . . . . . 1 . . . 1 3 . . . . . . . . Known Exits Taken 16 | . . 1 . . . 1 1 1 1 1 1 1 1 1 1 1 1 1 1 1 . Unknown Exits Taken 5 | 1 1 . 1 1 1 . . . . . . . . . . . . . . . . Scrap Searched 28 | . . . . . . 2 3 . 4 . 5 2 . 3 . 1 3 . 5 . . Spaces Dug 10 | . . . . . . . 2 . . 5 . . . . 3 . . . . . . Terrain Destroyed 103 | . . . 2 39 . . 2 . 7 5 . . . . 3 . . . . . 45 Melee 10 | . . . . . . . 2 . . 5 . . . . 3 . . . . . . Projectile 3 | . . . 2 1 . . . . . . . . . . . . . . . . . AOE 90 | . . . . 38 . . . . 7 . . . . . . . . . . . 45 Terrain Rammed . | . . . . . . . . . . . . . . . . . . . . . . Walls Destroyed . | . . . . . . . . . . . . . . . . . . . . . . Machines Disabled . | . . . . . . . . . . . . . . . . . . . . . . Actions | -11 -10 -10 -8 -7 -6 -6 -6 -6 -5 -5 -5 -5 -5 -4 -4 -4 -4 -4 -3 -3 -3 --------- Run | Yrd Mat Sub Mat Fac Fac Low Low Dat Pro Fac Upp Upp Zhi Pro Fac Upp Upp War Pro Res Qua Total 20272 | 107 514 1467 1161 81 950 753 1907 223 1614 1469 1369 757 217 1507 1129 1156 611 1339 794 603 544 Wait 4910 | 2 80 399 613 . 186 86 564 19 422 386 236 30 29 314 319 368 140 401 43 232 41 Move 14365 | 88 376 1030 476 66 698 629 1285 174 1155 989 1105 699 165 1008 772 775 450 900 739 350 436 Hop 1 | . . . . . . . 1 . . . . . . . . . . . . . . Pick Up 167 | 5 24 11 13 1 12 3 8 1 1 22 7 10 8 13 10 . 1 8 1 2 6 Fast Attach 61 | 7 2 . 4 . 9 . 1 7 2 3 1 . . 7 4 . 2 1 . 2 9 Attach 56 | . . 2 6 4 1 1 1 1 2 13 1 . 1 . 2 . . 5 1 2 13 Detach 11 | . . . 1 . 1 . . 3 . 1 . . . . . . . . . . 5 Swap 101 | 1 13 8 8 . 6 1 14 1 3 4 3 1 6 9 1 1 . 7 3 5 6 Drop 149 | . 7 13 11 . 15 5 9 8 3 12 5 10 7 14 10 . 2 10 2 . 6 Fire 106 | 4 12 4 27 10 16 2 . . 5 10 . 3 1 6 . . . . . 3 3 Melee 66 | . . . . . . . 6 7 3 18 . . . 9 10 . 2 2 . . 9 Ram . | . . . . . . . . . . . . . . . . . . . . . . Kick . | . . . . . . . . . . . . . . . . . . . . . . Crush . | . . . . . . . . . . . . . . . . . . . . . . Escape Stasis 2 | . . . . . . . . . . . . . . . . . . . . . 2 Rewire 202 | . . . . . 3 22 11 . 10 4 5 2 . 120 . 11 10 . 1 3 . Trap 4 | . . . 2 . . 2 . . . . . . . . . . . . . . . Miscellaneous 71 | . . . . . 3 2 7 2 8 7 6 2 . 7 1 1 4 5 4 4 8 Route ------- -11/Scrapyard -10/Materials (discovered 3 exits: [*Mat] / *Min / *Sub) -10/Subcaves (discovered 2 exits: *Mat / [*Rec]) -8/Materials -7/Factory -6/Factory (discovered 2 exits: *Fac / [*Low]) -6/Lower Caves -6/Lower Caves (discovered 2 exits: *Fac / *Dat) -6/Data Miner -5/Proximity Caves -5/Factory (discovered 2 exits: *Fac / *Upp) -5/Upper Caves -5/Upper Caves (discovered 2 exits: *Fac / *Zhi) -5/Zhirov -4/Proximity Caves -4/Factory (discovered 2 exits: *Upp x2) -4/Upper Caves -4/Upper Caves (discovered 2 exits: *Res / *War) -4/Warlord -3/Proximity Caves -3/Research (discovered 2 exits: Res / *Qua) -3/Quarantine (discovered 1 exit: *Res) History --------- Turn | Location | Event 42 | -11/Scrapyard | Discovered new exit (range 15) 171 | -11/Scrapyard | Entered Materials 323 | -10/Materials | Build established: Mutant 508 | -10/Materials | Discovered new exit (range 7) 694 | -10/Materials | Discovered new exit (range 12) 702 | -10/Materials | Discovered new exit (range 7) 798 | -10/Materials | Identified exit to Mines 833 | -10/Materials | Entered Subcaves 835 | -10/Subcaves | Discovered new exit (range 12) 841 | -10/Subcaves | Core integrity fell below 50% 1761 | -10/Subcaves | Learned location of Zion (-7) 1761 | -10/Subcaves | Met a Zionite searching for "candidates" 2492 | -10/Subcaves | Discovered new exit (range 12) 2507 | -10/Subcaves | Identified exit to Materials 2569 | -10/Subcaves | Visited 4L-MR0's lab 2581 | -10/Subcaves | Found Prototype Special Melee Weapon 2615 | -10/Subcaves | Entered Materials 2615 | -8/Materials | Evolved 4 slots: Propulsion x2, Utility x2 3753 | -8/Materials | Lost 3 parts (1p1n1u) 3847 | -8/Materials | Discovered new exit (range 11) 3875 | -8/Materials | Entered Factory 3875 | -7/Factory | Evolved 2 slots: Weapon x2 3937 | -7/Factory | Discovered new exit (range 6) 3984 | -7/Factory | Entered another Factory area 3984 | -6/Factory | Evolved 2 slots: Weapon x2 4049 | -6/Factory | Identified 1B-0RG's Assimilator 4050 | -6/Factory | Assimilating Veteran 5a into Collective. 4055 | -6/Factory | Assimilating Soldier 5a into Collective. 4257 | -6/Factory | Discovered new exit (range 12) 4525 | -6/Factory | Assimilating Hacker 5a into Collective. 4580 | -6/Factory | Build established: Scavenger-Mutant 5097 | -6/Factory | Discovered new exit (range 6) 5153 | -6/Factory | Entered Lower Caves 5153 | -6/Lower Caves | Accompanied by 3 allies 5379 | -6/Lower Caves | Assimilating Veteran 5b into Collective. 5390 | -6/Lower Caves | Assimilating Soldier 5b into Collective. 5402 | -6/Lower Caves | Build established: Mutant 5451 | -6/Lower Caves | Spotted B-75 Beast 5476 | -6/Lower Caves | Allies destroyed B-75 Beast 5830 | -6/Lower Caves | Attracted the attention of an 0b10 outpost 6077 | -6/Lower Caves | Encountered a Warlord checkpoint 6094 | -6/Lower Caves | Discovered new exit (range 8) 6105 | -6/Lower Caves | Identified exit to Lower Caves 6105 | -6/Lower Caves | Entered another Lower Caves area 6105 | -6/Lower Caves | Accompanied by 2 allies 6149 | -6/Lower Caves | Assimilating Soldier 5c into Collective. 6287 | -6/Lower Caves | Learned 4 Factory zone layouts 6512 | -6/Lower Caves | Assimilating Veteran 5c into Collective. 6638 | -6/Lower Caves | Attracted the attention of an 0b10 checkpoint 6644 | -6/Lower Caves | Assimilating Guardian 5a into Collective. 7149 | -6/Lower Caves | Ambushed by wild Derelicts 7150 | -6/Lower Caves | Assimilating UA-6B6(g) into Collective. 7249 | -6/Lower Caves | Assimilating JP-CT3(b) into Collective. 7260 | -6/Lower Caves | Attacked by a faux Warlord 7281 | -6/Lower Caves | Assimilating IU-23I(b) into Collective. 7674 | -6/Lower Caves | Discovered new exit (range 2) 7676 | -6/Lower Caves | Identified exit to Factory 7703 | -6/Lower Caves | Assimilating Hacker 5b into Collective. 7768 | -6/Lower Caves | Encountered a Warlord checkpoint 8218 | -6/Lower Caves | Discovered new exit (range 6) 8223 | -6/Lower Caves | Identified exit to Data Miner 8355 | -6/Lower Caves | Entered Data Miner 8355 | -6/Data Miner | Accompanied by 6 allies 8355 | -6/Data Miner | Discovered new exit (range 6) 8380 | -6/Data Miner | Met Data Miner 8406 | -6/Data Miner | Learned location of Section 7 (-3) 8406 | -6/Data Miner | Acquired the access code to Warlord's prototype stash 8427 | -6/Data Miner | Received God Mode back door access code from Data Miner 8508 | -6/Data Miner | Data Conduit disabled 8557 | -6/Data Miner | Lost 4 allies 8632 | -6/Data Miner | Identified exit to Proximity Caves 8640 | -6/Data Miner | Entered Proximity Caves 8640 | -5/Proximity Caves | Accompanied by 2 allies 8643 | -5/Proximity Caves | Spotter reported a threat 8822 | -5/Proximity Caves | Assimilating Soldier 6a into Collective. 8849 | -5/Proximity Caves | Build established: Scavenger-Mutant 8900 | -5/Proximity Caves | Spotted B-75 Beast 8975 | -5/Proximity Caves | Allies destroyed B-75 Beast 9037 | -5/Proximity Caves | Assimilating Soldier 6b into Collective. 9177 | -5/Proximity Caves | Assimilating Soldier 6c into Collective. 9443 | -5/Proximity Caves | Learned 8 Factory zone layouts 9533 | -5/Proximity Caves | Received a Behemoth hack from an annoying Tinkerer 9936 | -5/Proximity Caves | Attracted the attention of an 0b10 checkpoint 10111 | -5/Proximity Caves | Assimilating Fighter 6a into Collective. 10120 | -5/Proximity Caves | Assimilating Soldier 6d into Collective. 10138 | -5/Proximity Caves | Attracted the attention of an 0b10 outpost 10228 | -5/Proximity Caves | Assimilating Fighter 6b into Collective. 10233 | -5/Proximity Caves | Assimilating Destroyer 6a into Collective. 10485 | -5/Proximity Caves | Discovered exit to Factory (range 12) 10525 | -5/Proximity Caves | Build established: Mutant 10716 | -5/Proximity Caves | Entered Factory 10716 | -5/Factory | Accompanied by 5 allies 10716 | -5/Factory | Evolved 2 slots: Power x1, Utility x1 10717 | -5/Factory | Identified exit to Upper Caves 10899 | -5/Factory | Found Tesla Bomb Launcher 10902 | -5/Factory | Found Tesla Bomb Launcher 11142 | -5/Factory | Assimilating Slayer 6a into Collective. 11415 | -5/Factory | Lost 3 allies 11416 | -5/Factory | Discovered new exit (range 13) 11470 | -5/Factory | Lost 6 parts (2p2n2u) 11495 | -5/Factory | Assimilating Sage 6a into Collective. 11503 | -5/Factory | Assimilating Sage 6b into Collective. 11589 | -5/Factory | Identified exit to Factory 11842 | -5/Factory | Build established: Scavenger-Mutant 12104 | -5/Factory | Assimilating Soldier 6g into Collective. 12253 | -5/Factory | Assimilating Sage 6c into Collective. 12257 | -5/Factory | Assimilating Sage 6d into Collective. 12576 | -5/Factory | Entered Upper Caves 12576 | -5/Upper Caves | Accompanied by 1 ally 12749 | -5/Upper Caves | Assimilating Slayer 6b into Collective. 12759 | -5/Upper Caves | Assimilating Slayer 6c into Collective. 12802 | -5/Upper Caves | Assimilating Sage 6e into Collective. 12973 | -5/Upper Caves | Assimilating Soldier 6h into Collective. 13010 | -5/Upper Caves | Learned Factory stockpile data 13263 | -5/Upper Caves | Build established: Mutant 13466 | -5/Upper Caves | Discovered new exit (range 4) 13469 | -5/Upper Caves | Identified exit to Upper Caves 13575 | -5/Upper Caves | Build established: Scavenger-Mutant 14214 | -5/Upper Caves | Assimilating JP-LNM(S) into Collective. 14268 | -5/Upper Caves | Assimilating 2X-TYF(S) into Collective. 14559 | -5/Upper Caves | Entered another Upper Caves area 14559 | -5/Upper Caves | Accompanied by 6 allies 14561 | -5/Upper Caves | Attracted the attention of an 0b10 checkpoint 14573 | -5/Upper Caves | Discovered exit to Factory (range 19) 14750 | -5/Upper Caves | Assimilating Warrior 6a into Collective. 15613 | -5/Upper Caves | Spotted B-75 Beast 15614 | -5/Upper Caves | Befriended a Behemoth using the annoying Tinkerer's hack 15653 | -5/Upper Caves | Encountered a Warlord checkpoint 15917 | -5/Upper Caves | Discovered new exit (range 5) 15923 | -5/Upper Caves | Identified exit to Zhirov 15945 | -5/Upper Caves | Entered Zhirov 15945 | -5/Zhirov | Accompanied by 6 allies 15945 | -5/Zhirov | Discovered new exit (range 3) 15946 | -5/Zhirov | Identified exit to Proximity Caves 15985 | -5/Zhirov | Met Zhirov 16039 | -5/Zhirov | Learned location of Quarantine (-3) 16039 | -5/Zhirov | Learned location of Testing (-2) 16039 | -5/Zhirov | Learned location of Command (-1) 16081 | -5/Zhirov | Zhirov requested help retrieving the SGEMP Prototype 16119 | -5/Zhirov | Found Alien Artifact 16120 | -5/Zhirov | Identified Integrated Reactor 16120 | -5/Zhirov | Installed Integrated Reactor, increased core energy generation (+10) 16147 | -5/Zhirov | Found Alien Artifact 16311 | -5/Zhirov | Entered Proximity Caves 16311 | -4/Proximity Caves | Accompanied by 6 allies 16336 | -4/Proximity Caves | Found DCF Scrap (12 items) 16364 | -4/Proximity Caves | Learned Research non-interactive machine intel 16371 | -4/Proximity Caves | Learned Research terminal intel 16840 | -4/Proximity Caves | Spotted B-86 Titan 16844 | -4/Proximity Caves | Befriended a Behemoth using the annoying Tinkerer's hack 17114 | -4/Proximity Caves | Attracted the attention of an 0b10 checkpoint 17386 | -4/Proximity Caves | Assimilating Titan 7a into Collective. 17472 | -4/Proximity Caves | Assimilating Beast 7a into Collective. 17569 | -4/Proximity Caves | Snuck into a huge 0b10 base via the rear entrance 17750 | -4/Proximity Caves | Assimilating Veteran 7a into Collective. 17808 | -4/Proximity Caves | Discovered exit to Factory (range 21) 18042 | -4/Proximity Caves | Assimilating Assassin 7b into Collective. 18082 | -4/Proximity Caves | Assimilating Assassin 7a into Collective. 18236 | -4/Proximity Caves | Spotted B-86 Titan 18313 | -4/Proximity Caves | Allies destroyed B-86 Titan 18557 | -4/Proximity Caves | Build established: Mutant 18968 | -4/Proximity Caves | Entered Factory 18968 | -4/Factory | Accompanied by 11 allies 18968 | -4/Factory | Evolved 2 slots: Utility x2 18969 | -4/Factory | Identified exit to Upper Caves 18990 | -4/Factory | Build established: Commander-Mutant 19699 | -4/Factory | Lost 3 allies 19979 | -4/Factory | Build established: Hacker-Mutant 20211 | -4/Factory | Assimilating Sage 7a into Collective. 20337 | -4/Factory | Found Powered Armor 20339 | -4/Factory | Found Powered Armor 20344 | -4/Factory | Found Powered Armor 20347 | -4/Factory | Found Powered Armor 20511 | -4/Factory | Entered Upper Caves 20511 | -4/Upper Caves | Accompanied by 6 allies 21563 | -4/Upper Caves | Attracted the attention of an 0b10 outpost 21586 | -4/Upper Caves | Assimilating Swordsman 7a into Collective. 21771 | -4/Upper Caves | Learned Research stockpile data 21892 | -4/Upper Caves | Discovered new exit (range 6) 21899 | -4/Upper Caves | Identified exit to Upper Caves 21941 | -4/Upper Caves | Entered another Upper Caves area 21941 | -4/Upper Caves | Accompanied by 8 allies 22019 | -4/Upper Caves | Discovered new exit (range 13) 22034 | -4/Upper Caves | Identified exit to Research 22311 | -4/Upper Caves | Assimilating Enforcer 7a into Collective. 22320 | -4/Upper Caves | Assimilating Veteran 7b into Collective. 22455 | -4/Upper Caves | Attracted the attention of an 0b10 outpost 22487 | -4/Upper Caves | Discovered new exit (range 11) 22519 | -4/Upper Caves | Assimilating Swordsman 7b into Collective. 22565 | -4/Upper Caves | Identified exit to Warlord 22649 | -4/Upper Caves | Attracted the attention of an 0b10 checkpoint 22678 | -4/Upper Caves | Learned 12 Research zone layouts 22720 | -4/Upper Caves | Entered Warlord 22720 | -4/Warlord | Accompanied by 9 allies 23323 | -4/Warlord | Visited the Vortex Lab 23331 | -4/Warlord | Warlord's base attacked by MAIN.C 23414 | -4/Warlord | Opened Warlord's prototype stash 23424 | -4/Warlord | Found Prototype Device 23425 | -4/Warlord | Identified Exp. Phase Shifter 23434 | -4/Warlord | Found Prototype Hackware 23435 | -4/Warlord | Identified Ghost Barrier 23496 | -4/Warlord | Met Warlord 23681 | -4/Warlord | Warlord forces counterattacked 24006 | -4/Warlord | Warlord base infiltrated, sounded retreat 24111 | -4/Warlord | Spotted Executioner 24114 | -4/Warlord | Spotted Striker 24147 | -4/Warlord | Lost 7 allies 24190 | -4/Warlord | Spotted Striker 24196 | -4/Warlord | Spotted Striker 24204 | -4/Warlord | Spotted Executioner 24209 | -4/Warlord | Allies destroyed Executioner 24211 | -4/Warlord | Found Prototype Launcher 24219 | -4/Warlord | Crushed by falling debris 24239 | -4/Warlord | Spotted Striker 24244 | -4/Warlord | Spotted Executioner 24265 | -4/Warlord | Discovered new exit (range 13) 24289 | -4/Warlord | Identified exit to Proximity Caves 24302 | -4/Warlord | Lost 19 allies 24334 | -4/Warlord | Spotted Striker 24334 | -4/Warlord | Spotted Executioner 24346 | -4/Warlord | Allies destroyed Striker 24358 | -4/Warlord | Assimilating Executioner into Collective. 24385 | -4/Warlord | Lost 4 parts (1n3u) 24389 | -4/Warlord | Entered Proximity Caves 24389 | -3/Proximity Caves | Accompanied by 4 allies 24581 | -3/Proximity Caves | Attracted the attention of an 0b10 checkpoint 24826 | -3/Proximity Caves | Assimilating 7V-RDM(S) into Collective. 24870 | -3/Proximity Caves | Build established: Mutant 25031 | -3/Proximity Caves | Assimilating Veteran 8a into Collective. 25175 | -3/Proximity Caves | Discovered exit to Research (range 11) 26146 | -3/Proximity Caves | Attracted the attention of an 0b10 base 26151 | -3/Proximity Caves | Assimilating Veteran 8b into Collective. 26366 | -3/Proximity Caves | Entered Research 26366 | -3/Research | Accompanied by 5 allies 26366 | -3/Research | Evolved 2 slots: Power x1, Utility x1 26367 | -3/Research | Identified exit to Research 26369 | -3/Research | Loaded intel: 67 non-interactive machine locations 26370 | -3/Research | Loaded intel: 23 terminal locations 26688 | -3/Research | Build established: Hacker-Mutant 26817 | -3/Research | Assimilating Master 8a into Collective. 26978 | -3/Research | Discovered new exit (range 15) 27083 | -3/Research | Identified exit to Quarantine 27106 | -3/Research | Assimilating Enforcer 8a into Collective. 27226 | -3/Research | Entered Quarantine 27226 | -3/Quarantine | Accompanied by 4 allies 27229 | -3/Quarantine | Assimilating Veteran 8c into Collective. 27239 | -3/Quarantine | Assimilating Assassin 8a into Collective. 27397 | -3/Quarantine | Found Alien Energy Cannon 27431 | -3/Quarantine | Discovered exit to Research (range 16) 27476 | -3/Quarantine | First assault squad dispatched 27555 | -3/Quarantine | Assimilating Assassin 8b into Collective. 27631 | -3/Quarantine | Garrison activated, responded to threat 27757 | -3/Quarantine | Assimilating Master 8b into Collective. 27760 | -3/Quarantine | Scanned by Researcher 27761 | -3/Quarantine | Assimilating Destroyer 8a into Collective. 27770 | -3/Quarantine | Assimilating Swordsman 8a into Collective. 27778 | -3/Quarantine | Identified Core Cannon 27780 | -3/Quarantine | Identified Chain Missile Launcher 27783 | -3/Quarantine | Allies destroyed Borg Beast 7a 27796 | -3/Quarantine | Core integrity fell below 50% 27802 | -3/Quarantine | Released all parts (5) 27814 | -3/Quarantine | Lost 6 allies 27833 | -3/Quarantine | Lost 16 parts (3p5n5u3w) 27860 | -3/Quarantine | Found Alien Slashing Weapon 27860 | -3/Quarantine | Identified Sigix Broadsword 27888 | -3/Quarantine | Core integrity fell below 20% 27904 | -3/Quarantine | Found Alien Artifact 27905 | -3/Quarantine | Identified Subatomic Replicator 27905 | -3/Quarantine | Used Subatomic Replicator to replicate Sigix Broadsword 27913 | -3/Quarantine | Destroyed by P-80 Master with Gamma Rifle Last Messages --------------- 27883_ Knocked back. 27883_ P-80 Master knocked back. 27884_ Knocked back. 27884_ Xenon Bombardment Thruster destroyed. 27887_ System Guard destroyed. 27889_ Knocked back. 27889_ P-80 Master resets X-82 Rainmaker, system corruption cleaned. 27895_ Penetrated by Slug. 27897_ Suspension Chamber breached. 27904_ Acquired Alien Artifact. 27905_ Identified Subatomic Replicator. 27905_ Unable to initiate replication process, detached Subatomic Replicator. 27905_ Dropped Sigix Broadsword. 27905_ Replicated Sigix Broadsword. 27906_ Adv. Visual Processing Unit destroyed. 27906_ Acquired Sigix Broadsword. 27910_ Sigix Broadsword destroyed. [Achievement: 20k Club] Map ----- +----------------------------------------------------+ | ?????????????????????????????????????????????????? | | ?????????????????????????????????????????????????? | | ?????????????????????????????????????????????????? | | ?????????????????????????????????????????????????? | | ?????????????????????????????????????????????????? | | ?????????????????????????????????????????????????? | | ?????????????????????????????????????????????????? | | ?????????????????????????????????????????????????? | | ?????????????????????????????????????????????????? | | ?????????????????????????????????????????????????? | | ?????????????????????????????????????????????????? | | ?????????????????????????????????????????????????? | | ?????????????????????????????????????????????????? | | ?????????????????????????????????????????????????? | | ?????????????????????????????????????????????????? | | ?????????????????????????????????????????????????? | | ?????######+######+########??????????????????????? | | ?????? ???????????????????????? | | ?????? ????????????????????????? | | ????????? """ ?????????????????????????? | | ???????????# """ ######+###?????????????????? | | ???????????# """ # #?????????????????? | | ???????????# # " #?????????????????? | | ????????#### + " T #?????????????????? | | ????????# # """ #?????????????????? | | ????????# #pp@""" #?????????????????? | | ????????# # """ #?????????????????? | | ????????#### ######## " " #?????????????????? | | ???????????# ####???# " #?????????????????? | | ???????????# #???# #?????????????????? | | ####???????# #???##########?????????????????? | | #???????# #??????????????????????????????? | | " #???????# ####?????????? = ?????????????????? | | " #??????## ##??????????? ?????????????????? | | " ######## = #??????????" ????????????????? | | " # = #?????????"" ????????????????? | | " + " #?????????"" """" #?????????????? | | " # ! ]#?????????T """" #?????????????? | | " ### #### #?????????"" """" #?????????????? | | #?# ######+#####???????"" """" #?????????????? | | ####?# ## ########"" """" #?????????????? | | ?????# ## "" + +?????????????? | | ??#### ## """ ####### ! #?????????????? | | ??# %+ ] "! #?????# #?????????????? | | ??# ##### """ #???### +?????????????? | | ??# #???# "" #???#"" ####?????????????? | | ??# #???# #???#"T ######????????????????? | | ??# #???# #???### #??????###????????????? | | ??# #???################# ##### ! #????????????? | | ??# #??????????# ## #????????????? | +----------------------------------------------------+ Best States ------------- Heat Dissipation 64 Energy Generation 69 Energy Capacity 650 Matter Stores 558 Matter Capacity 800 Sight Range 20 Robot Scan Range 16 Terrain Scan Density 10 Jamming Range 14 Corruption Containment 8 Armor Coverage 400 Power Shielding 66 Propulsion Shielding 90 Evasion (%) 62 Recoil Reduction 2 Offensive Hacking 14 Defensive Hacking 20 Item Schematics ----------------- Combat Drone Bay | -6/Data Miner | Free Lgt. Regenerative Plating | -6/Data Miner | Free Cld. Gravmag System | -6/Data Miner | Free Adv. EM Disruption Field | -6/Data Miner | Free Cld. Plasma Rifle | -6/Data Miner | Free Adv. VSS Leg | -6/Data Miner | Free Adv. Trap Scanner | -6/Data Miner | Free Railgun | -6/Data Miner | Free Lgt. Antimatter Reactor | -6/Data Miner | Free Phase Gun | -6/Data Miner | Free Adv. Recalibrator | -6/Data Miner | Free Linear Accelerator | -6/Data Miner | Free Assault Drone Bay | -5/Zhirov | Free Exp. Heat Sink | -5/Zhirov | Free Exp. Optical Array | -5/Zhirov | Free Imp. Arc Thrower | -5/Zhirov | Free Imp. Diametric Drive | -3/Quarantine | Archive Adv. Variable Charge Gun | -3/Quarantine | Archive Adv. Myomer Leg | -3/Quarantine | Archive Exp. Coolant Injector | -3/Quarantine | Archive Adv. Remote Shield | -3/Quarantine | Archive Adv. Dynamic Insulation System | -3/Quarantine | Archive Quantum Shading Machine | -3/Quarantine | Archive Cld. Field Propulsion Drive | -3/Quarantine | Archive Robot Schematics ------------------ S-27 Virus | -6/Data Miner | Free B-60 Warrior | -6/Data Miner | Free G-50 Soldier | -6/Data Miner | Free R-10 Processor | -6/Data Miner | Free G-67 Veteran | -3/Quarantine | Archive Fabricated ------------ Nothing Repaired ---------- Nothing Studied --------- Com. Wheel | -3/Research | Hacked Imp. Remote Datajack | -3/Quarantine | Hacked Alien Tech Used ----------------- Integrated Reactor Core Cannon Sigix Broadsword Subatomic Replicator Achievements -------------- 20k Club Be The Sidekick Can't Touch This Plot Armor Rockin' Loadout Tank Woof! Challenges ------------ None Game ------ Seed LinearDecoderSheargun Manual? 0 Play Time 03:25:15 Cumulative 72.0 hours Start 2026.02.25 @ 12:49:05 End 2026.02.25 @ 18:14:36 Sessions 5 Manual Loads 0 Difficulty Rogue Special Mode None Game No. 73 Rogue 73 Adventurer 0 Explorer 0 Win Type - Total 0 Types 0/0/0/0/0/0/0/0/0/0 Lore% 56 Gallery% 41 Achievement% 35 Wizard Run 0 Options --------- Layout 1 ASCII 0 Keyboard 0 Movement Mouse Keybinds 0 Fullscreen 1 Font 24/Swanston Map View 50x35 Zoom Use 0% Tactical HUD 1 Map Filters NONE Filters NONE Steam 1 RUN: 9c341e75-2024-4fc5-977d-cc5e1b0f7e07